bitfinex/quotes_SOLUSD_20240915
["timestamp","ask_amount","ask_price","bid_price","bid_amount"]
[1726365789125,7.2318,138.28,138.25,4.00123349]
[1726365789343,7.2318,138.28,138.26,4.00123349]
[1726365789644,7.2318,138.28,138.24,4.00050645]
[1726365790347,7.2318,138.28,138.25,4.00118879]
[1726365790659,7.2318,138.28,138.26,4.00118879]
[1726365790950,7.2318,138.28,138.24,4.00050645]
[1726365791439,7.233,138.26,138.24,4.00050645]
[1726365791641,68.0764,138.31,138.24,4.00050645]
[1726365791642,7.2321,138.28,138.24,4.00050645]
[1726365791853,7.2321,138.28,138.25,5.6232113]
[1726365792042,7.2321,138.28,138.26,5.6232113]
[1726365792244,7.2321,138.28,138.27,5.6232113]
[1726365793344,7.2321,138.28,138.27,5.62641477]
[1726365796857,7.2321,138.28,138.23,7.2342]
[1726365797025,7.2321,138.28,138.24,5.62805081]
[1726365797230,7.2321,138.28,138.25,5.62876641]
[1726365797654,7.2321,138.28,138.26,5.62876641]
[1726365797931,7.2321,138.28,138.27,5.62876641]
[1726365800045,7.2321,138.28,138.27,5.62962958]
[1726365800456,7.2321,138.28,138.23,7.2342]
[1726365800759,7.2321,138.28,138.24,5.62960409]
[1726365800944,7.2321,138.28,138.25,5.62960409]
[1726365801255,7.2321,138.28,138.26,5.62960409]
[1726365801451,7.2321,138.28,138.27,5.62960409]
[1726365804162,7.2321,138.28,138.27,5.62976577]
[1726365808048,7.2321,138.28,138.27,5.63075777]
[1726365810058,7.2326,138.27,138.21,25.3225]
[1726365810270,66.4696,138.29,138.21,25.3225]
[1726365811148,7.2338,138.24,138.19,13.617]
[1726365811649,7.2333,138.25,138.19,13.617]
[1726365814340,7.2337,138.24,138.19,7.2363]
[1726365815677,7.2333,138.25,138.19,7.2363]
[1726365816958,23.7029,138.25,138.19,7.2363]
[1726365822748,7.2338,138.24,138.18,25.5840353]
[1726365823064,7.2337,138.24,138.18,25.5840353]
[1726365825258,23.7029,138.25,138.19,7.2363]
[1726365826873,73.7029,138.25,138.18,25.5840353]
[1726365827654,73.7029,138.25,138.19,7.2363]
[1726365827860,16.4696,138.25,138.19,7.2363]
[1726365837573,16.4696,138.25,138.19,13.65534628]
[1726365838506,16.4696,138.25,138.19,7.2363]
[1726365838858,66.4696,138.25,138.19,7.2363]
[1726365851091,66.4696,138.25,138.2,4.01243014]
[1726365851306,66.4696,138.25,138.19,13.65607751]
[1726365851478,66.4696,138.25,138.2,4.01242921]
[1726365851685,66.4696,138.25,138.19,13.65607751]
[1726365851897,66.4696,138.25,138.2,4.01243014]
[1726365852090,66.4696,138.25,138.19,13.65607751]
[1726365852286,66.4696,138.25,138.2,4.01236094]
[1726365852504,66.4696,138.25,138.19,13.65607751]
[1726365852805,66.4696,138.25,138.2,4.01236001]
[1726365853010,66.4696,138.25,138.19,13.65607751]
[1726365853180,66.4696,138.25,138.2,4.01243014]
[1726365853384,66.4696,138.25,138.19,13.65607751]
[1726365853583,66.4696,138.25,138.2,4.01243014]
[1726365853812,66.4696,138.25,138.19,13.65607751]
[1726365853994,66.4696,138.25,138.2,4.01243014]
[1726365854191,66.4696,138.25,138.19,13.65618188]
[1726365854509,66.4696,138.25,138.19,7.2363]
[1726365855010,66.4696,138.25,138.19,13.65618822]
[1726365855186,66.4696,138.25,138.2,4.01243014]
[1726365855382,66.4696,138.25,138.21,4.01243014]
[1726365855602,66.4696,138.25,138.19,7.2363]
[1726365855808,66.4696,138.25,138.2,4.01534657]
[1726365855988,66.4696,138.25,138.21,4.01534657]
[1726365856188,66.4696,138.25,138.2,6.42505398]
[1726365856408,66.4696,138.25,138.21,4.01568998]
[1726365856598,66.4696,138.25,138.2,6.42505398]
[1726365856912,66.4696,138.25,138.21,4.01595982]
[1726365857090,66.4696,138.25,138.2,6.42505398]
[1726365857290,66.4696,138.25,138.21,4.0159502]
[1726365857491,66.4696,138.25,138.2,6.42505398]
[1726365857723,66.4696,138.25,138.21,4.01597082]
[1726365858015,66.4696,138.25,138.2,6.42505398]
[1726365858399,66.4696,138.25,138.21,4.01576924]
[1726365864016,66.4696,138.25,138.19,7.2363]
[1726365864217,66.4696,138.25,138.2,10.44170866]
[1726365864405,66.4696,138.25,138.21,4.01604179]
[1726365864606,66.4696,138.25,138.2,6.42565716]
[1726365864806,66.4696,138.25,138.21,4.01604148]
[1726365864995,66.4696,138.25,138.2,6.42566003]
[1726365865191,66.4696,138.25,138.21,4.01604641]
[1726365865395,66.4696,138.25,138.2,6.42744995]
[1726365865611,66.4696,138.25,138.21,4.01716942]
[1726365865919,66.4696,138.25,138.2,6.42691788]
[1726365866221,66.4696,138.25,138.21,4.01746553]
[1726365866414,66.4696,138.25,138.2,6.42915384]
[1726365866596,66.4696,138.25,138.21,4.01823715]
[1726365866796,66.4696,138.25,138.2,6.42931302]
[1726365867111,66.4696,138.25,138.21,4.01848502]
[1726365867312,66.4696,138.25,138.2,6.42939983]
[1726365867516,66.4696,138.25,138.21,4.01871888]
[1726365867695,66.4696,138.25,138.2,6.42994638]
[1726365867897,66.4696,138.25,138.21,4.01871951]
[1726365868196,66.4696,138.25,138.2,6.42999184]
[1726365868392,66.4696,138.25,138.19,7.2363]
[1726365868393,66.4696,138.25,138.21,4.01877415]
[1726365868609,66.4696,138.25,138.2,6.43002614]
[1726365868809,66.4696,138.25,138.21,4.0187043]
[1726365869010,66.4696,138.25,138.19,7.2363]
[1726365869011,66.4696,138.25,138.2,6.42991761]
[1726365869221,66.4696,138.25,138.19,7.2363]
[1726365869731,66.4696,138.25,138.21,4.01861456]
[1726365870026,66.4696,138.25,138.2,6.42989685]
[1726365870918,66.4696,138.25,138.19,7.2363]
[1726365871109,66.4696,138.25,138.2,6.42834605]
[1726365871310,66.4696,138.25,138.19,7.2363]
[1726365871511,66.4696,138.25,138.2,6.42845817]
[1726365871714,66.4696,138.25,138.19,7.2363]
[1726365871920,23.776884,138.24,138.2,6.42837859]
[1726365872107,23.776884,138.24,138.18,18.3472353]
[1726365873208,50.0,138.23,138.18,18.3472353]
[1726365873407,57.2347,138.23,138.18,0.2553353]
[1726365874622,7.2348,138.22,138.18,0.2553353]
[1726365875823,23.6715,138.22,138.18,0.2553353]
[1726365876025,16.4367,138.22,138.18,0.2553353]
[1726365877416,16.4367,138.22,138.15,31.76748147]
[1726365877417,74.027864,138.21,138.15,6.43388147]
[1726365877724,74.027864,138.21,138.13,6.43388147]
[1726365877927,50.0,138.19,138.14,6.68921677]
[1726365878425,50.0,138.19,138.14,0.2553353]
[1726365883515,52.85037911,138.19,138.14,0.2553353]
[1726365903345,2.85037911,138.19,138.14,18.3519353]
[1726365903649,50.0,138.21,138.14,18.3519353]
[1726365904339,50.0,138.21,138.15,7.2383]
[1726365909524,50.0,138.21,138.14,25.5908353]
[1726365911847,57.2354,138.21,138.14,18.3519353]
[1726365914549,57.2354,138.21,138.14,25.5907353]
[1726365928754,7.2362,138.2,138.14,0.2553353]
[1726365939466,73.6417,138.19,138.14,0.2553353]
[1726365943361,66.4051,138.19,138.14,0.2553353]
[1726365944148,16.4051,138.19,138.14,0.2553353]
[1726365945356,66.4051,138.19,138.14,0.2553353]
[1726365956860,69.31387876,138.19,138.14,0.2553353]
[1726365960786,66.4051,138.19,138.14,0.2553353]
[1726365973878,66.36891138,138.19,138.14,0.2553353]
[1726365975589,16.36891138,138.19,138.14,7.4942353]
[1726365978870,16.36891138,138.19,138.14,0.2553353]
[1726365996588,16.36891138,138.19,138.14,0.2553353]
[1726366013491,16.36891138,138.19,138.14,7.4942353]
[1726366032229,16.36891138,138.19,138.15,6.41775424]
[1726366032413,16.36891138,138.19,138.14,7.4942353]
[1726366032729,16.36891138,138.19,138.15,6.41742176]
[1726366032922,16.36891138,138.19,138.14,7.4942353]
[1726366033131,16.36891138,138.19,138.15,6.41731093]
[1726366033604,16.36891138,138.19,138.14,7.4942353]
[1726366038128,16.36891138,138.19,138.14,0.2553353]
[1726366038335,16.36891138,138.19,138.15,7.2383]
[1726366041043,16.36891138,138.19,138.14,7.4942353]
[1726366050618,16.36891138,138.19,138.15,4.01055202]
[1726366050818,16.36891138,138.19,138.16,4.01055202]
[1726366051013,16.36891138,138.19,138.14,7.4942353]
[1726366052040,16.36891138,138.19,138.15,4.01060388]
[1726366052227,16.36891138,138.19,138.16,4.01060388]
[1726366052429,16.36891138,138.19,138.14,7.4942353]
[1726366052636,16.36891138,138.19,138.15,4.010622]
[1726366052945,16.36891138,138.19,138.16,4.010622]
[1726366053144,16.36891138,138.19,138.14,7.4942353]
[1726366053337,16.36891138,138.19,138.15,4.01066287]
[1726366053640,16.36891138,138.19,138.16,4.01066287]
[1726366053935,16.36891138,138.19,138.14,7.4942353]
[1726366054115,16.36891138,138.19,138.15,4.0105991]
[1726366054317,16.36891138,138.19,138.16,4.0105991]
[1726366054636,16.36891138,138.19,138.14,7.4942353]
[1726366055341,16.36891138,138.19,138.15,4.010622]
[1726366055641,16.36891138,138.19,138.16,4.010622]
[1726366055845,16.36891138,138.19,138.14,7.4942353]
[1726366056023,16.36891138,138.19,138.15,4.01127544]
[1726366056215,16.36891138,138.19,138.16,4.01127544]
[1726366056415,16.36891138,138.19,138.14,7.4942353]
[1726366056637,16.36891138,138.19,138.15,4.01177267]
[1726366056825,16.36891138,138.19,138.16,4.01177267]
[1726366057036,16.36891138,138.19,138.14,7.4942353]
[1726366057223,16.36891138,138.19,138.15,4.01178113]
[1726366057423,16.36891138,138.19,138.16,4.01178113]
[1726366057648,16.36891138,138.19,138.14,7.4942353]
[1726366057831,16.36891138,138.19,138.15,4.01144597]
[1726366058038,16.36891138,138.19,138.16,4.01144597]
[1726366058222,16.36891138,138.19,138.14,7.4942353]
[1726366058724,16.36891138,138.19,138.15,4.01151709]
[1726366059348,16.36891138,138.19,138.16,4.01151709]
[1726366059525,16.36891138,138.19,138.14,7.4942353]
[1726366059849,16.36891138,138.19,138.15,4.01148863]
[1726366060023,16.36891138,138.19,138.16,4.01148863]
[1726366060224,16.36891138,138.19,138.14,7.4942353]
[1726366060425,16.36891138,138.19,138.15,4.01146315]
[1726366060625,16.36891138,138.19,138.16,4.01146315]
[1726366060952,16.36891138,138.19,138.14,7.4942353]
[1726366061126,16.36891138,138.19,138.15,4.01144175]
[1726366061327,16.36891138,138.19,138.16,4.01144175]
[1726366061553,16.36891138,138.19,138.14,7.4942353]
[1726366086151,16.36891138,138.19,138.14,8.94066289]
[1726366086355,16.36891138,138.19,138.15,7.2383]
[1726366087950,2.8427028,138.2,138.15,7.2383]
[1726366088160,57.2354,138.21,138.15,7.2383]
[1726366090173,64.79699262,138.21,138.15,7.2383]
[1726366093771,64.79699262,138.21,138.16,6.41856477]
[1726366093977,64.79699262,138.21,138.15,7.2383]
[1726366094153,64.79699262,138.21,138.16,6.41830254]
[1726366094352,64.79699262,138.21,138.15,7.2383]
[1726366094564,64.79699262,138.21,138.16,6.41830896]
[1726366094744,64.79699262,138.21,138.15,7.2383]
[1726366094949,64.79699262,138.21,138.16,6.41848337]
[1726366095173,64.79699262,138.21,138.15,7.2383]
[1726366095483,64.79699262,138.21,138.16,6.41839306]
[1726366095772,64.79699262,138.21,138.15,7.2383]
[1726366095950,64.79699262,138.21,138.16,6.41842937]
[1726366096151,64.79699262,138.21,138.15,7.2383]
[1726366096352,64.79699262,138.21,138.16,6.41867423]
[1726366096551,64.79699262,138.21,138.15,7.2383]
[1726366096751,64.79699262,138.21,138.16,6.41867916]
[1726366096965,64.79699262,138.21,138.15,7.2383]
[1726366097176,64.79699262,138.21,138.16,6.41864651]
[1726366097373,64.79699262,138.21,138.15,7.2383]
[1726366097554,64.79699262,138.21,138.16,6.41864504]
[1726366097757,64.79699262,138.21,138.15,7.2383]
[1726366097954,64.79699262,138.21,138.16,6.41875755]
[1726366098155,64.79699262,138.21,138.15,7.2383]
[1726366098356,64.79699262,138.21,138.16,6.41875123]
[1726366098674,64.79699262,138.21,138.15,7.2383]
[1726366098877,64.79699262,138.21,138.16,6.41839635]
[1726366099078,64.79699262,138.21,138.15,7.2383]
[1726366101980,7.236,138.2,138.14,7.4942353]
[1726366105181,7.236,138.2,138.15,7.2384]
[1726366114090,7.236,138.2,138.14,7.4942353]
[1726366121784,7.236,138.2,138.15,4.01360448]
[1726366122072,7.236,138.2,138.16,4.01360448]
[1726366122269,7.236,138.2,138.17,4.01360448]
[1726366122470,7.236,138.2,138.14,7.4942353]
[1726366122668,7.236,138.2,138.15,4.01355266]
[1726366122895,7.236,138.2,138.16,4.01355266]
[1726366123093,7.236,138.2,138.14,7.4942353]
[1726366123279,7.236,138.2,138.15,4.01355384]
[1726366123479,7.236,138.2,138.16,4.01355384]
[1726366123776,7.236,138.2,138.17,4.01355384]
[1726366123977,7.236,138.2,138.14,7.4942353]
[1726366124276,7.236,138.2,138.15,4.01356173]
[1726366124599,7.236,138.2,138.16,4.01356173]
[1726366124890,7.236,138.2,138.17,4.01356173]
[1726366125121,7.236,138.2,138.14,7.4942353]
[1726366125310,7.236,138.2,138.15,4.0136193]
[1726366125597,7.236,138.2,138.16,4.0136193]
[1726366125799,7.236,138.2,138.17,4.0136193]
[1726366125977,7.236,138.2,138.14,7.4942353]
[1726366134795,7.2364,138.19,138.14,7.4942353]
[1726366137512,7.2364,138.19,138.14,0.2553353]
[1726366140410,7.2369,138.18,138.14,0.2553353]
[1726366159335,7.2375,138.17,138.15,6.4218303]
[1726366159516,7.2375,138.17,138.14,0.2553353]
[1726366161633,22.7185,138.17,138.14,0.2553353]
[1726366168630,101.140874,138.15,138.14,0.2553353]
[1726366168826,101.266364,138.15,138.14,0.2553353]
[1726366170635,108.8121001,138.15,138.14,0.2553353]
[1726366175358,111.68219596,138.15,138.14,0.2553353]
[1726366175964,111.68219596,138.15,138.1,0.2553353]
[1726366175965,7.2405,138.12,138.1,0.2553353]
[1726366176466,50.0,138.13,138.1,0.2553353]
[1726366176467,77.2406,138.11,138.1,0.2553353]
[1726366177662,101.142974,138.11,138.1,0.2553353]
[1726366178446,101.268464,138.11,138.1,0.2553353]
[1726366179766,101.393954,138.11,138.1,0.2553353]
[1726366186875,27.2406,138.11,138.1,0.2553353]
[1726366193762,51.142974,138.11,138.1,0.2553353]
[1726366194888,51.393954,138.11,138.1,0.2553353]
[1726366196884,51.142974,138.11,138.1,0.2553353]
[1726366197084,51.017484,138.11,138.1,0.2553353]
[1726366197289,27.2406,138.11,138.1,0.2553353]
[1726366207794,59.61291645,138.11,138.1,0.2553353]
[1726366207982,59.73840645,138.11,138.1,0.2553353]
[1726366208487,51.017484,138.11,138.1,0.2553353]
[1726366209486,51.142974,138.11,138.1,0.2553353]
[1726366209682,51.268464,138.11,138.1,0.2553353]
[1726366216992,54.2020673,138.11,138.1,0.2553353]
[1726366222104,54.3275573,138.11,138.1,0.2553353]
[1726366228606,57.2423,138.08,138.06,0.2553353]
[1726366229091,23.776884,138.07,138.06,0.2553353]
[1726366232583,51.270564,138.07,138.06,0.2553353]
[1726366232784,51.270564,138.07,138.03,6.5495]
[1726366232785,7.2437,138.05,138.03,6.5495]
[1726366240411,23.776884,138.04,138.03,6.5495]
[1726366240910,81.021484,138.04,138.02,0.2553353]
[1726366283175,7.2448,138.03,138.02,0.2553353]
[1726366283453,31.021684,138.03,138.02,0.2553353]
[1726366352118,31.147174,138.03,138.02,0.2553353]
[1726366352288,31.272664,138.03,138.02,0.2553353]
[1726366361124,51.272664,138.03,138.02,0.2553353]
[1726366361420,51.398154,138.03,138.02,0.2553353]
[1726366361921,7.2467,138.0,137.98,4.02625092]
[1726366362110,7.2467,138.0,137.97,0.2553353]
[1726366362423,23.776884,137.99,137.97,0.2553353]
[1726366365403,31.023784,137.99,137.97,0.2553353]
[1726366373417,51.024284,137.98,137.97,0.2553353]
[1726366387645,101.275264,137.98,137.97,0.2553353]
[1726366387855,101.400754,137.98,137.97,0.2553353]
[1726366392239,101.024284,137.98,137.97,0.2553353]
[1726366400953,101.400754,137.98,137.97,0.2553353]
[1726366409565,101.024284,137.98,137.97,0.2553353]
[1726366414755,101.275264,137.98,137.97,0.2553353]
[1726366414953,101.400754,137.98,137.97,0.2553353]
[1726366421752,93.776884,137.98,137.97,0.2553353]
[1726366422370,101.024284,137.98,137.97,0.2553353]
[1726366423676,101.275264,137.98,137.97,0.2553353]
[1726366423845,101.400754,137.98,137.97,0.2553353]
[1726366441958,101.024284,137.98,137.97,0.2553353]
[1726366449774,101.149774,137.98,137.97,0.2553353]
[1726366449976,101.275264,137.98,137.97,0.2553353]
[1726366463598,20.0,137.98,137.97,0.2553353]
[1726366463805,7.2458,138.01,137.97,6.5149353]
[1726366464012,7.56094057,138.0,137.98,4.0324535]
[1726366464314,7.2452,138.03,137.99,4.03056553]
[1726366464605,7.2452,138.03,137.98,7.2473]
[1726366464778,7.2452,138.03,137.99,4.03031764]
[1726366464974,7.2452,138.03,137.98,7.2473]
[1726366465178,7.2452,138.03,137.99,4.02973046]
[1726366465374,20.0,138.02,137.98,7.2473]
[1726366465597,23.776884,138.01,137.99,4.02952983]
[1726366465903,20.0,138.0,137.98,7.2473]
[1726366466107,43.776884,138.0,137.99,4.02953774]
[1726366467081,20.0,138.0,137.99,4.02953774]
[1726366467286,20.0,138.02,137.98,7.2473]
[1726366467899,20.0,138.0,137.98,7.2473]
[1726366469921,20.0,138.0,137.98,11.27679323]
[1726366471532,20.0,138.0,137.98,7.2473]
[1726366473727,23.776884,138.02,137.99,7.2467]
[1726366473930,20.0,138.01,137.99,7.2467]
[1726366487327,23.776884,138.03,137.99,7.2467]
[1726366487542,23.776884,138.01,137.97,6.5149353]
[1726366488422,31.023084,138.01,137.97,6.5149353]
[1726366488627,27.2464,138.0,137.97,6.5149353]
[1726366488845,23.776884,137.99,137.97,6.5149353]
[1726366489750,23.776884,138.0,137.97,6.5149353]
[1726366489941,43.776884,138.0,137.97,6.5149353]
[1726366497756,43.776884,138.0,137.97,0.2553353]
[1726366498450,51.023284,138.0,137.97,0.2553353]
[1726366503475,43.776884,137.98,137.97,0.2553353]
[1726366508974,51.024284,137.98,137.97,0.2553353]
[1726366513387,53.89973169,137.98,137.97,0.2553353]
[1726366516671,7.2483,137.97,137.93,21.6025353]
[1726366516856,20.0,137.95,137.93,21.6025353]
[1726366517556,43.776884,137.96,137.93,21.6025353]
[1726366518277,51.025484,137.96,137.93,21.6025353]
[1726366519557,20.0,137.94,137.93,0.2553353]
[1726366522781,51.026384,137.94,137.93,0.2553353]
[1726366525961,53.946418,137.94,137.93,0.2553353]
[1726366526661,51.026384,137.94,137.93,0.2553353]
[1726366538265,58.58723916,137.94,137.93,0.2553353]
[1726366558421,51.026384,137.94,137.93,0.2553353]
[1726366558793,7.2491,137.95,137.93,0.2553353]
[1726366560216,20.0,137.94,137.93,23.4835353]
[1726366561210,20.0,137.94,137.93,27.51640669]
[1726366562118,20.0,137.94,137.93,23.4835353]
[1726366579226,23.776884,137.96,137.93,23.4835353]
[1726366580450,20.0,137.95,137.93,23.4835353]
[1726366592653,27.2491,137.95,137.93,0.2553353]
[1726366593153,31.026384,137.94,137.93,0.2553353]
[1726366593368,51.026384,137.94,137.93,0.2553353]
[1726366600368,53.96296696,137.94,137.93,0.2553353]
[1726366606961,27.2495,137.94,137.93,0.2553353]
[1726366608454,51.026384,137.94,137.93,0.2553353]
[1726366633583,51.026384,137.94,137.9,6.6583]
[1726366633584,27.2511,137.91,137.9,6.6583]
[1726366633784,27.2511,137.91,137.89,0.2553353]
[1726366637202,20.0,137.91,137.89,0.2553353]
[1726366644393,51.028484,137.9,137.89,0.2553353]
[1726366644701,20.0,137.89,137.85,0.2553353]
[1726366645595,27.2523,137.89,137.85,0.2553353]
[1726366648172,20.0,137.89,137.85,0.2553353]
[1726366648489,2.81535322,137.92,137.86,0.12549]
[1726366648692,23.776884,137.92,137.86,0.12549]
[1726366648877,20.0,137.9,137.86,0.25098]
[1726366653795,20.0,137.9,137.85,0.2553353]
[1726366654496,7.2518,137.9,137.85,0.2553353]
[1726366654812,20.0,137.89,137.85,0.2553353]
[1726366655916,27.2523,137.89,137.85,0.2553353]
[1726366657694,20.0,137.87,137.85,0.2553353]
[1726366657893,27.2523,137.89,137.85,0.2553353]
[1726366658311,20.0,137.87,137.85,0.2553353]
[1726366659026,43.776884,137.88,137.85,0.2553353]
[1726366663030,51.029584,137.88,137.85,0.2553353]
[1726366663423,7.2534,137.87,137.85,0.2553353]
[1726366663619,20.0,137.86,137.85,0.2553353]
[1726366666427,20.0,137.86,137.85,0.5063153]
[1726366668806,20.0,137.86,137.85,0.3808253]
[1726366669418,20.0,137.86,137.85,4.41597075]
[1726366669908,20.0,137.86,137.85,4.29048075]
[1726366674222,20.0,137.86,137.85,4.29077393]
[1726366677136,20.0,137.86,137.85,0.2553353]
[1726366677314,20.0,137.86,137.85,4.29077449]
[1726366683637,20.0,137.86,137.85,0.2553353]
[1726366684418,20.0,137.86,137.85,8.32621368]
[1726366691940,20.0,137.86,137.85,0.2553353]
[1726366695921,27.2537,137.86,137.85,0.2553353]
[1726366705251,51.030584,137.86,137.85,0.2553353]
[1726366716459,20.0,137.86,137.85,0.2553353]
[1726366721670,27.2537,137.86,137.85,0.2553353]
[1726366722372,20.0,137.82,137.81,6.7699353]
[1726366722858,20.0,137.82,137.81,0.2553353]
[1726366726070,27.2558,137.82,137.81,0.2553353]
[1726366731574,51.032684,137.82,137.81,0.2553353]
[1726366736892,27.2558,137.82,137.81,0.2553353]
[1726366745163,10.18071042,137.84,137.81,0.2553353]
[1726366745387,7.2551,137.84,137.81,0.2553353]
[1726366746882,20.0,137.83,137.81,0.2553353]
[1726366754795,27.2558,137.83,137.81,0.2553353]
[1726366763097,7.2548,137.84,137.81,0.2553353]
[1726366763299,20.0,137.83,137.81,0.2553353]
[1726366763988,7.2533,137.87,137.82,29.30551061]
[1726366764199,7.2533,137.87,137.83,6.58382061]
[1726366764398,7.2533,137.87,137.84,6.45833061]
[1726366764603,7.2533,137.87,137.83,0.12549]
[1726366764800,7.2533,137.87,137.84,6.45766738]
[1726366765003,7.2533,137.87,137.83,0.12549]
[1726366765310,7.2533,137.87,137.84,6.4575164]
[1726366765609,27.2537,137.86,137.83,0.12549]
[1726366765792,27.2537,137.86,137.84,6.45751491]
[1726366765991,27.2537,137.86,137.83,0.12549]
[1726366766311,27.2537,137.86,137.84,6.45756029]
[1726366766607,27.2537,137.86,137.83,0.12549]
[1726366791321,7.2542,137.85,137.83,0.12549]
[1726366791541,20.0,137.84,137.83,0.12549]
[1726366800619,27.2547,137.84,137.82,0.2016204]
[1726366803326,27.2553,137.83,137.82,0.2016204]
[1726366818052,51.032184,137.83,137.82,0.2016204]
[1726366818928,51.032184,137.83,137.78,0.2568325]
[1726366818929,7.2574,137.79,137.78,0.2568325]
[1726366819132,27.2574,137.79,137.78,0.2568325]
[1726366898610,7.2564,137.81,137.78,0.2568325]
[1726366898834,10.59187371,137.85,137.79,0.12549]
[1726366899132,18.1347,137.86,137.79,15.38577]
[1726366900438,7.2555,137.83,137.79,15.38577]
[1726366902006,7.2558,137.82,137.79,15.38577]
[1726366902423,7.2564,137.81,137.79,15.0093]
[1726366925058,7.2555,137.83,137.79,15.0093]
[1726366925258,43.776884,137.85,137.79,15.0093]
[1726366925457,7.2559,137.82,137.79,15.0093]
[1726366925636,7.2559,137.82,137.8,4.03742105]
[1726366927148,7.2559,137.82,137.79,15.0093]
[1726366927341,7.2565,137.81,137.8,4.03742346]
[1726366927849,7.2565,137.81,137.78,0.2568325]
[1726366934948,7.2569,137.8,137.78,0.2568325]
[1726366935859,7.2564,137.81,137.78,0.2568325]
[1726366942066,7.2564,137.81,137.79,6.46026422]
[1726366942270,7.2564,137.81,137.78,0.2568325]
[1726366942478,7.2564,137.81,137.79,6.46026422]
[1726366942766,7.2564,137.81,137.78,0.2568325]
[1726366942971,7.2564,137.81,137.79,6.46022175]
[1726366943273,7.2564,137.81,137.8,6.46022027]
[1726366944175,7.2564,137.81,137.78,0.2568325]
[1726366944672,7.2564,137.81,137.8,6.46017632]
[1726366947769,7.2564,137.81,137.78,0.2568325]
[1726366948066,7.2564,137.81,137.8,6.46017632]
[1726366948275,7.2564,137.81,137.79,6.46017632]
[1726366948574,7.2564,137.81,137.8,6.46021879]
[1726366951460,7.2564,137.81,137.8,6.46055931]
[1726366954770,7.2564,137.81,137.78,0.2568325]
[1726366955158,7.2564,137.81,137.8,6.46038905]
[1726366955564,7.2564,137.81,137.78,0.2568325]
[1726366967189,7.2559,137.82,137.78,0.2568325]
[1726366967766,7.2559,137.82,137.79,0.12549]
[1726366968476,43.776884,137.85,137.79,0.12549]
[1726366968477,7.2554,137.83,137.79,0.12549]
[1726366968894,20.0,137.82,137.79,0.12549]
[1726366973698,27.2561,137.82,137.79,0.12549]
[1726366980086,7.2565,137.81,137.78,0.2568325]
[1726366989499,7.2569,137.8,137.78,0.2568325]
[1726367015205,20.0,137.82,137.78,0.2568325]
[1726367015416,7.2574,137.79,137.78,0.2568325]
[1726367016032,7.2574,137.79,137.78,6.7176271]
[1726367018108,20.0,137.8,137.78,6.7176271]
[1726367018405,20.0,137.8,137.78,0.2568325]
[1726367020929,20.0,137.8,137.79,6.46045112]
[1726367028025,27.2568,137.8,137.79,6.46045112]
[1726367028735,27.2568,137.8,137.78,0.2568325]
[1726367030228,7.2574,137.79,137.78,0.2568325]
[1726367047954,7.2574,137.79,137.78,4.29514348]
[1726367051561,7.257,137.8,137.78,4.29514348]
[1726367051944,7.257,137.8,137.78,0.2568325]
[1726367052239,27.257,137.8,137.79,4.03831005]
[1726367055854,27.257,137.8,137.79,4.03830913]
[1726367059262,27.257,137.8,137.79,4.03828254]
[1726367062665,27.257,137.8,137.79,4.03830913]
[1726367063046,7.257,137.8,137.79,4.03830913]
[1726367063470,27.257,137.8,137.79,4.03830913]
[1726367065069,27.257,137.8,137.78,0.2568325]
[1726367065270,49.8437,137.8,137.79,9.13e-06]
[1726367065572,49.8437,137.8,137.73,0.2568325]
[1726367065573,27.26,137.74,137.73,0.2568325]
[1726367065762,7.2595,137.76,137.73,0.2568325]
[1726367066080,20.0,137.75,137.73,0.2568325]
[1726367067266,27.2595,137.75,137.73,0.2568325]
[1726367070360,7.26,137.74,137.73,0.2568325]
[1726367070578,27.26,137.74,137.73,0.2568325]
[1726367071479,20.0,137.74,137.73,0.2568325]
[1726367077770,20.0,137.74,137.73,4.2403863]
[1726367077956,20.0,137.74,137.73,0.2568325]
[1726367078382,20.0,137.74,137.73,4.2403863]
[1726367078584,20.0,137.74,137.73,0.2568325]
[1726367078987,20.0,137.74,137.73,4.2403863]
[1726367079286,20.0,137.74,137.73,0.2568325]
[1726367080084,20.0,137.74,137.73,4.2404129]